Cogmind - Beta 15 @@@ ROGUE MODE // 2025.08.14 @ 17:52:10 Player: spider wisdom Result: Destroyed by H-55 Commando with Gauss Rifle Performance ------------- Evolutions (2) 1000 Regions Visited (4) 800 Robots Destroyed (36) 180 Value Destroyed (1102) 1102 Prototype IDs (2) 40 Alien Tech Used (0) 0 Bonus (0) 0 TOTAL SCORE: 3122 Bonus ------- None Cogmind --------- Core Integrity 0/550 Matter 252/300 Energy 33/100 System Corruption 6% Temperature Cool (0) Movement Core (150) Ox2 Location -8/Materials Parts ------- > --- POWER (2) -------- (None) > --- PROPULSION (3) --- (None) > --- UTILITY (3) ------ Advanced Visual Processing Unit Field Recycling Unit > --- WEAPON (3) ------- (None) > --- INVENTORY (5) ---- Weight Redist. System Peak State ------------ > --- POWER ------------ Light Nuclear Core > --- PROPULSION ------- Airjet Airjet Aerolev Unit > --- UTILITY ---------- Bomb Drone Bay > --- WEAPON ----------- Light EM Pulse Cannon Rocket Launcher > --- INVENTORY -------- Airjet Weight Redist. System Advanced Visual Processing Unit Field Recycling Unit [Rating: 32] Favorites ----------- Power Light Ion Engine Engine Light Ion Engine Power Core Light Nuclear Core Propulsion Flight Unit Wheel Wheel Hover Unit Airjet Flight Unit Flight Unit Utility Bomb Drone Bay Device Bomb Drone Bay Storage Small Storage Unit Processor Terrain Scan Processor Weapon Light EM Pulse Cannon Energy Gun Medium Laser Energy Cannon Light EM Pulse Cannon Ballistic Gun Light Assault Rifle Ballistic Cannon Flak Cannon Launcher Rocket Launcher Special Weapon Plasma Cutter Build | -11 -10 -9 -9 -8 ------- Run | Yrd Mat Mat Min Mat Slots Evolved 4 | . . 2 . 2 Power 1 | . . 1 . . Propulsion 1 | . . . . 1 Utility 1 | . . 1 . . Weapon 1 | . . . . 1 Parts Attached 39 | 6 3 11 5 14 Power 8 | 1 . 4 1 2 Engine 6 | 1 . 4 1 . Core 2 | . . . . 2 Reactor . | . . . . . Propulsion 12 | 2 . 4 2 4 Treads . | . . . . . Leg . | . . . . . Wheel 2 | 2 . . . . Hover 4 | . . . . 4 Flight 6 | . . 4 2 . Utility 9 | 1 2 1 1 4 Device 5 | . 2 . 1 2 Storage 1 | 1 . . . . Processor 3 | . . 1 . 2 Hackware . | . . . . . Protection . | . . . . . Artifact . | . . . . . Weapon 10 | 2 1 2 1 4 Energy Gun 3 | 1 . 1 . 1 Energy Cannon 2 | . 1 1 . . Ballistic Gun 1 | 1 . . . . Ballistic Cannon 2 | . . . . 2 Launcher 1 | . . . 1 . Special Weapon 1 | . . . . 1 Impact Weapon . | . . . . . Slashing Weapon . | . . . . . Piercing Weapon . | . . . . . Special Melee Weapon . | . . . . . Unidentified Prototypes 2 | . . . 1 1 Corrupted Parts 1 | . . . . 1 System Corruption 3 | . . . . 3 Parts Lost 23 | . . 9 1 13 Power 4 | . . 2 . 2 Propulsion 8 | . . 4 1 3 Utility 2 | . . . . 2 Weapon 9 | . . 3 . 6 Highest Loss Streak 5 | . . 5 1 3 To Critical Strikes . | . . . . . Average Backups 2 | . 3 3 2 2 Power . | . 1 . . . Propulsion . | . . . . . Utility 1 | . . 1 1 2 Weapon . | . . . . . Tool/Special . | . . . . . Unused Backups 3 | . . 3 . . Power . | . . . . . Propulsion . | . . . . . Utility . | . . . . . Weapon 1 | . . 1 . . Tool/Special 2 | . . 2 . . Average Slot Usage (%) 57 | . 95 68 45 48 Engine 8 | . 14 9 11 3 Core 1 | . . . . 3 Wheel 5 | . 28 7 . . Hover 5 | . . . . 13 Flight 7 | . . 10 15 2 Device 8 | . 11 10 5 9 Storage 2 | . 14 5 . . Processor 4 | . . 9 1 4 Energy Gun 3 | . 14 5 . . Energy Cannon 6 | . 2 10 11 3 Ballistic Gun 1 | . 10 . . . Ballistic Cannon 1 | . . . . 3 Launcher 1 | . . . . 3 Peak Build Rating 32 | 6 8 9 21 32 Average Rating 12 | 4 6 7 10 18 On Entrance 7 | . 6 7 7 19 Naked Turns . | . . . . . Heaviest Build 23 | 11 19 23 19 21 Greatest Support 30 | 26 26 26 8 30 Greatest Overweight (x) 4 | . . 4 3 4 Average Overweight (x) . | . . . 1 . Largest Inventory Capacity 8 | 8 8 8 5 5 Average Capacity 5 | 7 8 6 5 5 Most Carried 6 | 3 5 6 5 5 Average Carried 2 | 1 3 3 2 2 Final Capacity 8 | 8 8 5 5 5 Final Carried 5 | 1 5 4 2 1 Class Distribution -------------------- 100% | Mutant Dominant Class ---------------- Mutant | -10/Materials Mutant | -9/Materials Mutant | -9/Mines Mutant | -8/Materials Resources | -11 -10 -9 -9 -8 ----------- Run | Yrd Mat Mat Min Mat Matter Collected 809 | 205 35 135 112 322 Remotely . | . . . . . Salvage Created 948 | . 35 213 180 520 Parts 61 | . 1 18 10 32 Haulers Intercepted . | . . . . . Recyclers Shooed . | . . . . . Parts Field Recycled 5 | . . 2 . 3 Retrieved Matter 32 | . . 10 . 22 Parts Self-Destructed . | . . . . . Prevented . | . . . . . Kills | -11 -10 -9 -9 -8 ------- Run | Yrd Mat Mat Min Mat Combat Hostiles Destroyed 30 | . 1 9 6 14 Guns 3 | . . 2 . 1 Cannons 20 | . 1 7 4 8 AOE 7 | . . . 2 5 Classes Destroyed 9 | . 1 3 1 4 Worker 2 | . . . . 2 Builder 3 | . . . . 3 Operator 1 | . . 1 . . Swarmer 10 | . . 7 3 . Grunt 14 | . 1 1 2 10 Brawler 1 | . . . . 1 Duelist 1 | . . . 1 . Sentry 3 | . . 1 . 2 Hunter 1 | . . . . 1 Best Kill Streak 7 | . 1 4 3 7 Combat Bots Only 4 | . 1 4 3 4 Max Kills in Single Turn 2 | . 1 1 1 2 Gunslinging . | . . . . . Exploded 1 | . . . 1 1 Melee . | . . . . . Uniques/NPCs Destroyed . | . . . . . Combat | -11 -10 -9 -9 -8 -------- Run | Yrd Mat Mat Min Mat Hostile Shots Fired 298 | . 7 93 29 169 Missed 100 | . 2 25 9 64 Hits 198 | . 5 68 20 105 Projectile 198 | . 5 68 20 105 Critical Strikes 3 | . . 1 . 2 Damage Taken 2621 | . 56 676 185 1704 Core 789 | . . 177 47 565 Absorbed by Shields . | . . . . . Core Remaining (%) 81 | 100 100 . 44 . Volleys Fired 87 | . 4 25 13 45 Largest 2 | . 2 2 2 2 Hottest 116 | . 110 116 89 89 Shots Fired 128 | . 8 41 15 64 Gun 27 | . 4 16 . 7 Cannon 85 | . 4 25 13 43 Launcher 12 | . . . 2 10 Special 4 | . . . . 4 Kinetic 28 | . . . . 28 Thermal 60 | . 8 41 . 11 Explosive 12 | . . . 2 10 Electromagnetic 28 | . . . 13 15 Robot Hit Streak 10 | . 5 10 3 8 Robot Miss Streak 13 | . 2 3 2 13 Penetration Max . | . . . . . Secondary Targets . | . . . . . Shots Hit Robots 89 | . 6 27 9 47 Core Hits 82 | . 1 13 6 62 Critical Kills . | . . . . . Critical Parts Destroyed . | . . . . . Critical Strikes 1 | . . 1 . . Burn 1 | . . 1 . . Melee Attacks . | . . . . . Impact . | . . . . . Slashing . | . . . . . Piercing . | . . . . . Sneak Attacks . | . . . . . Combat Hostiles . | . . . . . Follow-up Attacks . | . . . . . Damage Inflicted 2779 | . 90 435 282 1972 Guns 185 | . 38 120 . 27 Cannons 1262 | . 52 315 154 741 Explosions 1279 | . . . 128 1151 Melee . | . . . . . Ramming 32 | . . . . 32 Kinetic 522 | . . . . 522 Thermal 573 | . 90 435 . 48 Explosive 1279 | . . . 128 1151 Electromagnetic 373 | . . . 154 219 Impact . | . . . . . Slashing . | . . . . . Piercing . | . . . . . Highest Corruption 6 | . . . . 6 Average Corruption 3 | . . . . 3 Corruption Purged . | . . . . . Corruption Blocked . | . . . . . Effects 11 | . . . . 11 Message Errors 4 | . . . . 4 Matter Fused 3 | . . . . 3 Heat Flow Errors 1 | . . . . 1 Energy Discharges 3 | . . . . 3 Overload Shots . | . . . . . Overflow Damage 162 | . . . 17 145 Projectiles 17 | . . . 17 . Explosions 145 | . . . . 145 Melee . | . . . . . Knockbacks 16 | . . . . 16 Impact . | . . . . . Kinetic 16 | . . . . 16 Secondary . | . . . . . Self-Inflicted Damage 250 | . . . . 250 Shots 3 | . . . . 3 Rammed 7 | . . . . 7 Targets Rammed 7 | . . . . 7 Kicked . | . . . . . Crushed . | . . . . . Highest Temperature 252 | . 204 252 66 202 Average Temperature 60 | . 102 87 32 27 Received Heat Transfer 759 | . 30 162 36 531 Siege Activations . | . . . . . Martial Activations . | . . . . . Shielding Activations . | . . . . . Robots Disrupted 1 | . . . . 1 Combat Hostiles 1 | . . . . 1 Robots Corrupted . | . . . . . Combat Hostiles . | . . . . . Parts Fried . | . . . . . Impact Corruptions . | . . . . . Robots Melted . | . . . . . Combat Hostiles . | . . . . . Parts Melted 5 | . 2 3 . . Heat Transferred 1480 | . 222 1073 . 185 Parts Sabotaged . | . . . . . Parts Stolen . | . . . . . Parts Stripped . | . . . . . Power Chain Reactions . | . . . . . Alert | -11 -10 -9 -9 -8 ------- Run | Yrd Mat Mat Min Mat Maximum Alert Level 1 | . . . . 1 Low Security (%) 71 | 100 100 100 100 26 Level 1 28 | . . . . 73 Level 2 . | . . . . . Level 3 . | . . . . . Level 4 . | . . . . . Level 5 . | . . . . . High Security . | . . . . . Max Security . | . . . . . Peak Influence 382 | . 24 115 86 382 Initial 5 | . . 5 3 5 Average 107 | . 3 49 22 237 Influence Increases 1228 | . 49 246 156 777 Destroy 0b10 Robot/C 600 | . 20 180 120 280 Destroy 0b10 Robot/NC 30 | . . 5 . 25 Destroy Leader 120 | . . 30 20 70 Successful Hack 15 | . 14 1 . . Disable Machine 135 | . . 15 . 120 Destroy Structure 88 | . . . 16 72 Partial Spotted 45 | . 15 15 . 15 Lose Combat Pursuer 195 | . . . . 195 Influence Decreases 872 | . 35 250 152 435 Entered New Map 25 | . . 9 7 9 Time Decay 606 | . 35 151 135 285 Lost Part 230 | . . 90 10 130 Lost Ally 11 | . . . . 11 Squads Dispatched 8 | . . 4 . 4 Investigation 2 | . . 1 . 1 Extermination . | . . . . . Reinforcement 6 | . . 3 . 3 Assault . | . . . . . Garrison . | . . . . . Intercept . | . . . . . Searches Triggered . | . . . . . Construction Impeded 1 | . . . . 1 Haulers Reinforced . | . . . . . Active Scanning Responses . | . . . . . Cargo Convoy Interrupts . | . . . . . Stealth | -11 -10 -9 -9 -8 --------- Run | Yrd Mat Mat Min Mat Distress Signals 7 | . . 1 . 6 Communications Jammed . | . . . . . Distress Signals . | . . . . . Times Spotted 81 | . 7 24 6 44 Peak Tracking Total 7 | . 3 6 3 7 Tactical Retreats 13 | . 1 3 . 9 Traps | -11 -10 -9 -9 -8 ------- Run | Yrd Mat Mat Min Mat Traps Triggered 2 | . . 1 . 1 Indirectly . | . . . . . Trap Hack Attempts . | . . . . . Triggered . | . . . . . Disarmed . | . . . . . Reprogrammed . | . . . . . Reused . | . . . . . Traps Extracted . | . . . . . Installed . | . . . . . Triggered . | . . . . . Machines | -11 -10 -9 -9 -8 ---------- Run | Yrd Mat Mat Min Mat Machines Disabled 9 | . . 1 . 8 Max in Single Turn 3 | . . 1 . 3 Machines Repaired . | . . . . . Machines Dismantled . | . . . . . Machines Sabotaged . | . . . . . Overloaded Fab Kills . | . . . . . Hacking | -11 -10 -9 -9 -8 --------- Run | Yrd Mat Mat Min Mat Machines Accessed 4 | . 1 2 1 . Terminals 2 | . 1 1 . . Fabricators . | . . . . . Repair Stations . | . . . . . Recycling Units . | . . . . . Scanalyzers 1 | . . 1 . . Garrison Access . | . . . . . Total Hacks 11 | . 5 5 1 . Successful 8 | . 3 4 1 . Failed 3 | . 2 1 . . Catastrophic 1 | . 1 . . . Database Lockouts . | . . . . . Manual 8 | . 6 2 . . Terminals 8 | . 5 3 . . Fabricators . | . . . . . Repair Stations . | . . . . . Recycling Units . | . . . . . Scanalyzers 2 | . . 2 . . Garrison Access . | . . . . . Terminal Hacks 5 | . 2 2 1 . Record 3 | . 1 2 . . Open Door 1 | . . . 1 . Dispatch Records 1 | . 1 . . . Fabricator Hacks . | . . . . . Repair Station Hacks . | . . . . . Recycling Unit Hacks . | . . . . . Scanalyzer 2 | . . 2 . . Insert Component 1 | . . 1 . . Analyze 1 | . . 1 . . Garrison Access Hacks . | . . . . . Unauthorized Hacks 1 | . 1 . . . Terminals 1 | . 1 . . . Assimilate 1 | . 1 . . . Fabricators . | . . . . . Repair Stations . | . . . . . Recycling Units . | . . . . . Scanalyzers . | . . . . . Garrison Access . | . . . . . Data Cores Recovered 1 | . . 1 . . Used . | . . . . . Hacking Detections 3 | . 1 2 . . Full Trace Events . | . . . . . Feedback Events . | . . . . . Feedback Blocked . | . . . . . Robot Schematics Acquired . | . . . . . Robots Built . | . . . . . Authchips . | . . . . . Time . | . . . . . Total Robot Build Rating . | . . . . . Part Schematics Acquired 1 | . . 1 . . Parts Built . | . . . . . Authchips . | . . . . . Time . | . . . . . Total Part Build Rating . | . . . . . Parts Repaired . | . . . . . Time . | . . . . . Parts Recycled . | . . . . . Recycled Matter . | . . . . . Retrieved Matter . | . . . . . Retrieved Components . | . . . . . Parts Scanalyzed 1 | . . 1 . . Part Schematics Acquired 1 | . . 1 . . Parts Damaged . | . . . . . Bothacking | -11 -10 -9 -9 -8 ------------ Run | Yrd Mat Mat Min Mat Used RIF Installer . | . . . . . Robots Hacked . | . . . . . Non-combat . | . . . . . Combat . | . . . . . Robot Hacks Applied . | . . . . . Relay Couplers Released . | . . . . . Fabnet Peak Effective % . | . . . . . Robots Rewired . | . . . . . Allies Hacked . | . . . . . Hacks Repelled . | . . . . . Allies | -11 -10 -9 -9 -8 -------- Run | Yrd Mat Mat Min Mat Total Allies . | . . . . . Largest Group . | . . . . . Highest-Rated Group . | . . . . . Highest-Rated Ally . | . . . . . Total Orders . | . . . . . Ally Attacks 5 | . . . . 5 Total Damage . | . . . . . Kills . | . . . . . Allies Corrupted . | . . . . . Allies Melted . | . . . . . Intel | -11 -10 -9 -9 -8 ------- Run | Yrd Mat Mat Min Mat Active Infowar (turns) 785 | . 178 267 . 340 Optics 165 | . . . . 165 Sensors 222 | . . . . 222 ECM 445 | . 178 267 . . Robot Analysis Total . | . . . . . Derelict Logs Recovered 2 | . . . 2 . Drone Launches 5 | . . . . 5 Drone Recoveries . | . . . . . Exploration | -11 -10 -9 -9 -8 ------------- Run | Yrd Mat Mat Min Mat Turns Passed 2049 | 48 269 372 561 799 Spaces Moved 1830 | 41 213 331 402 843 Core 47 | 4 . 7 . 36 Treads . | . . . . . Legs . | . . . . . Wheels 347 | 37 213 97 . . Hover 732 | . . . . 732 Flight 704 | . . 227 402 75 Fastest Speed 37 | 50 90 37 117 48 Average Speed 84 | 86 90 77 126 66 Slowest Speed 280 | 90 90 250 280 250 Overloaded Moves . | . . . . . Propulsion Burnouts . | . . . . . Robots Hopped 1 | . . 1 . . Potential Cave-ins . | . . . . . Cave-ins Triggered . | . . . . . Exploration Rate (%) 36 | 3 27 29 71 52 Regions Visited 4 Branch Regions 1 Pre-discovered Areas 1 | . . . 1 . Known Exits Taken . | . . . . . Unknown Exits Taken 4 | 1 1 1 1 . Scrap Searched . | . . . . . Spaces Dug . | . . . . . Terrain Destroyed 129 | . . . 18 111 Melee . | . . . . . Projectile . | . . . . . AOE 129 | . . . 18 111 Terrain Rammed . | . . . . . Walls Destroyed . | . . . . . Machines Disabled . | . . . . . Actions | -11 -10 -9 -9 -8 --------- Run | Yrd Mat Mat Min Mat Total 2197 | 53 283 405 442 1014 Wait 152 | . 52 15 7 78 Move 1824 | 40 212 328 401 843 Hop 1 | . . 1 . . Pick Up 45 | 7 7 12 5 14 Fast Attach . | . . . . . Attach 39 | 6 3 11 5 14 Detach 14 | . 2 4 4 4 Swap 10 | . 1 3 2 4 Drop 17 | . 2 6 5 4 Fire 87 | . 4 25 13 45 Melee . | . . . . . Ram 7 | . . . . 7 Kick . | . . . . . Crush . | . . . . . Escape Stasis . | . . . . . Rewire . | . . . . . Trap . | . . . . . Miscellaneous 1 | . . . . 1 Route ------- -11/Scrapyard -10/Materials -9/Materials -9/Mines (discovered 2 exits: [*Mat] / [*Zio]) -8/Materials (discovered 1 exit: [*Fac]) History --------- Turn | Location | Event 15 | -11/Scrapyard | Discovered new exit (range 15) 49 | -11/Scrapyard | Entered Materials 273 | -10/Materials | Discovered new exit (range 8) 317 | -10/Materials | Build established: Mutant 318 | -10/Materials | Entered another Materials area 318 | -9/Materials | Evolved 2 slots: Power x1, Utility x1 615 | -9/Materials | Lost 5 parts (1p2n2w) 688 | -9/Materials | Discovered new exit (range 5) 690 | -9/Materials | Entered Mines 699 | -9/Mines | Core integrity fell below 50% 776 | -9/Mines | A Derelict revealed a hidden shortcut to a safe place 911 | -9/Mines | Learned Materials security intel 948 | -9/Mines | Received a Rocket Launcher from a helpful Derelict 999 | -9/Mines | Learned location of Zion (-7) 1015 | -9/Mines | Found the Drone Emporium 1022 | -9/Mines | Found Prototype Device 1023 | -9/Mines | Identified Bomb Drone Bay 1246 | -9/Mines | Discovered new exit (range 5) 1251 | -9/Mines | Entered Materials 1251 | -8/Materials | Evolved 2 slots: Propulsion x1, Weapon x1 1361 | -8/Materials | Lost 3 allies 1624 | -8/Materials | Lost 3 parts (1n2w) 1873 | -8/Materials | Lost 3 parts (1p1n1w) 1900 | -8/Materials | Discovered new exit (range 19) 1978 | -8/Materials | Core integrity fell below 50% 2022 | -8/Materials | Core integrity fell below 20% 2050 | -8/Materials | Destroyed by H-55 Commando with Gauss Rifle Last Messages --------------- 01967_ Plasma Cutter destroyed. 01969_ G-47 Trooper knocked back. 01971_ G-47 Trooper destroyed. 01978_ System corrupted: Matter fused (-10). 01992_ Slug penetrates Wall. 01995_ LG0GFI6OZP |X:D2V,FICVXNE SUPQ I 02001_ Y-45 Defender destroyed. 02002_ Field Recycling Unit collects Heat Sink, recycling 3 matter... 02003_ G-47 Trooper knocked back. 02006_ Flak Cannon destroyed. 02007_ Slug penetrates Wall. 02010_ System corrupted: Matter fused (-6). 02015_ Field Recycling Unit collects Airjet, recycling 5 matter... 02016_ Slug penetrates Neutrino Reactor. 02017_ Slammed into G-47 Trooper. 02031_ VK4%1LX8RSJZ 8DI 02048_ R-06 Scavenger collects Beam Rifle. Map ----- +----------------------------------------------------+ | # """ # " """ #?????# ! | | # ## """ """ ########?????# ! | | # """ ## """ """ #????????????# | | # """ ## """ #????????????# | | # """ ## "" #?????????????# | | # ## """ #?????????????# | | ############# "" #?????????????# = | | ??????????### "" #?????????????# | | ??????????#"" " +?????????????# | | ??????????#"" #?????????????# | | ??????????#"T #????????????## | | ??????????#""a ] ##########+### | | ??????????#"" ! | | ??????????### | | ????????????# | | ????????????# ## #########+### | | ????????????## ## #???????????##### | | ?????????????# ##!!!![[#???????????????? | | ?????????????# ##!!!![[#???????????????? | | ?????????????+ #########???????????##### | | ?????????????# #???????????????????# | | ?????????????# #??????????????# ???# | | ?????????????# #################+### | | ?????????????# # * | | ?????????????# r/ " | | ?????????????# @ hg # S" | | ?????????????+ # ##########+##+# " | | ?????????????# # #??????# %# | | ?????????????? < #! !#??????#""" ##### | | ???????????????? ##!!!!##??????#""" #???? | | ??????????????????######???????#""" #???? | | ???????????????????????????????# #???? | | ???????????????????????????????# #???? | | ???????????????????????????????########???? | | ??????????????????????????????????????????? | | ??????????????????????????????????????????? | | ??????????????????????????????????????????? | | ??????????????????????????????????????????? | | ??????????????????????????????????????????? | | ??????????????????????????????????????????? | | ??????????????????????????????????????????? | | ??????????????????????????????????????????? | | ??????????????????????????????????????????? | | ??????????????????????????????????????????? | | ??????????????????????????????????????????? | | ??????????????????????????????????????????? | | | | | | | | | +----------------------------------------------------+ Best States ------------- Heat Dissipation 31 Energy Generation 15 Energy Capacity 250 Matter Stores 300 Matter Capacity 300 Sight Range 20 Robot Scan Range 14 Terrain Scan Density 110 ECM Strength 1 Additional Mass Support 6 Evasion (%) 62 Item Schematics ----------------- Plasma Cutter | -9/Materials | Scanalyzed Robot Schematics ------------------ None Fabricated ------------ Nothing Repaired ---------- Nothing Alien Tech Used ----------------- None Achievements -------------- None Challenges ------------ None Game ------ Seed TrapEfficiencyAccelerator Manual? 0 Play Time 00:51:06 Cumulative 6.9 hours Start 2025.08.14 @ 15:28:43 End 2025.08.14 @ 17:52:10 Sessions 3 Manual Loads 0 Difficulty Rogue Special Mode None Game No. 23 Rogue 17 Adventurer 6 Explorer 0 Win Type - Total 0 Types 0/0/0/0/0/0/0/0/0/0 Lore% 4 Gallery% 14 Achievement% 12 Wizard Run 0 Options --------- Layout 0 ASCII 0 Keyboard 1 Movement Numpad Keybinds 0 Fullscreen 1 Font 24/Proggy Map View 76x50 Zoom Use 0% Tactical HUD 1 Map Filters NONE Filters NONE Steam 1 RUN: 244103e8-1d82-462b-be96-9d5ed8fa98e8